[Event "Finnish Senior Championship 2022"]
[Site "Helsinki"]
[Date "2022.04.18"]
[Round "4.2"]
[White "Hietala, Pekka"]
[Black "Aakio, Seppo"]
[Result "1/2-1/2"]
[ECO "A55"]
[WhiteElo "1925"]
[BlackElo "2051"]
[Annotator "TA"]
[PlyCount "131"]
[EventDate "2022.04.15"]
[EventType "swiss"]
[EventCountry "FIN"]
[SourceTitle "playchess.com"]
[Source "ChessBase"]
[SourceQuality "1"]
[TimeControl "40/5400+30:1800+30"]

{[%evp 18,131,72,62,74,27,75,33,56,29,29,0,0,-15,-9,-31,0,-35,-35,-47,-36,-56,-76,-120,-125,-247,-194,-211,-213,-220,-223,-259,-252,-270,-252,-418,-247,-266,-293,-275,-235,-228,-179,-169,-171,-183,-171,-218,-216,-259,-249,-234,-185,-156,-137,-137,-137,-299,-193,-193,-193,-193,-193,-201,-121,-246,-172,-172,-172,-425,-425,-425,-186,-425,-425,-425,-425,-425,-425,-425,-425,-425,-425,-425,-425,-425,-186,-223,-211,-425,-425,-425,-425,-425,-408,-408,-331,-397,-380,-397,-397,-414,0,-166,0,-382,-382,-382,-382,-375,-375,-375,-360,-218,-218,-191]} 1. c4 {[%emt 0:00:18]} d6 {[%emt 0:00:31]} 2. Nc3 {[%emt 0:00:30]} e5 {[%emt 0:00:27]} 3. Nf3 {[%emt 0:01:33]} c6 {[%emt 0:04:15]} 4. d4 {[%emt 0:01:01]} Nd7 {[%emt 0:01:40]} 5. e4 {[%emt 0:00:50]} Ngf6 {[%emt 0:03:04]} 6. Be2 {[%emt 0:01:35]} Be7 {[%emt 0:01:45]} 7. O-O {[%emt 0:01:22]} O-O {[%emt 0:00:54]} 8. Qc2 {[%emt 0:02:48]} Qc7 {[%emt 0:04:07]} 9. h3 {[%emt 0:02:14]} Re8 {[%emt 0:00:25]} 10. Be3 {[%emt 0:00:52]} Bf8 {[%emt 0:01:57] A55: Old Indian Defence with Nf3 and e4.} 11. b4 {[%emt 0:09:30] [#]} (11. d5 $16) 11... b6 $146 {[%emt 0:09:55]} (11... d5 $11) ({Predecessor:} 11... exd4 12. Nxd4 a6 13. Nb3 d5 14. exd5 Bxb4 15. dxc6 bxc6 16. Na4 Ne4 17. Bd3 Ndf6 18. c5 {0-1 (44) Angelov,Z (2126)-Georgiev,S (2142) Sunny Beach 2008}) 12. a4 {[%emt 0:08:02] &Bianco is more active.} a5 {[%emt 0:05:36] White is slightly better.} 13. bxa5 {[%emt 0:04:22]} bxa5 {[%emt 0:00:27]} 14. Rab1 {[%emt 0:01:20]} exd4 {[%emt 0:10:47]} 15. Nxd4 {[%emt 0:00:25]} Nc5 {[%emt 0:00:20]} 16. f3 {[%emt 0:02:25]} Bd7 {[%emt 0:16:39][%cal Od6d5]} 17. Bf4 {[%emt 0:02:20]} Rab8 {[%emt 0:01:01]} 18. g4 {[%emt 0:01:09]} Rb4 {[%emt 0:01:05]} 19. Rfd1 {[%emt 0:03:38]} Reb8 {[%emt 0:02:03]} 20. Bh2 {[%emt 0:09:09]} g6 {[%emt 0:02:47]} 21. f4 {[%emt 0:02:31]} (21. Bg3 $17) 21... Qa7 {[%emt 0:05:06]} 22. Kg2 {[%emt 0:02:38]} Rxb1 $1 {[%emt 0:02:18]} 23. Rxb1 {[%emt 0:01:04]} Rxb1 {[%emt 0:00:07]} 24. Qxb1 {[%emt 0:00:33] [#]} Nxa4 $1 {[%emt 0:00:33][%mdl 512]} 25. Nxa4 {[%emt 0:02:28] Hoping for Bg1.} Qxd4 {[%emt 0:00:28]} 26. Kf3 $2 {[%emt 0:03:06]} (26. Nb6 Be8 27. Bg1 Qxe4+ 28. Qxe4 Nxe4 29. Bd3) 26... d5 {[%emt 0:05:07]} (26... h5 $142 {[%cal Rh5g4]} 27. gxh5 d5) 27. e5 $19 {[%emt 0:02:00]} Ne4 {[%emt 0:00:12][%csl Ge4][%cal Rd4f2]} ({Don't go for} 27... dxc4 $2 28. exf6 c5 29. Bg1 Qxf6 30. Qc2 $19) 28. Bg1 {[%emt 0:00:53] Inhibits Qf2+.} Nd2+ {[%emt 0:04:26]} 29. Kg3 {[%emt 0:01:00]} Qxc4 {[%emt 0:01:33]} 30. Bxc4 {[%emt 0:01:50]} Nxb1 {[%emt 0:00:03]} 31. Bd3 {[%emt 0:00:54]} Na3 {[%emt 0:00:43]} 32. Bb6 {[%emt 0:01:18]} (32. Kf3 $142) 32... Bb4 {[%emt 0:00:12]} 33. Nc5 {[%emt 0:00:34]} Bc8 {[%emt 0:01:25]} 34. Nb3 {[%emt 0:02:53]} a4 {[%emt 0:03:40][%cal Ba5a4,Ba4a3,Ba3a2][%mdl 32]} 35. Nc5 {[%emt 0:00:18]} Bxc5 {[%emt 0:00:31]} 36. Bxc5 $17 {[%emt 0:00:09][%mdl 4096] Endgame KBB-KBN} Nb5 {[%emt 0:00:05]} 37. f5 $2 {[%emt 0:03:42]} (37. Bxb5 $17 cxb5 38. h4) 37... a3 {[%emt 0:05:33]} 38. Bxb5 {[%emt 0:02:09]} a2 {[%emt 0:00:51]} ({Weaker is} 38... cxb5 39. Bxa3 gxf5 40. Kh4 $15) ({Don't take} 38... gxf5 39. Bxc6 a2 40. Bd4 $18) 39. Bd4 {[%emt 0:00:09]} cxb5 $19 {[%emt 0:00:04] KB-KB} 40. Kf4 {[%emt 0:03:12]} h6 {[%emt 0:04:05]} 41. h4 {[%emt 0:32:12]} (41. e6 $17 Kf8 42. exf7 Kxf7 43. Ke5) 41... gxf5 {[%emt 0:14:45]} 42. gxf5 {[%emt 0:00:00]} Kf8 {[%emt 0:01:15]} 43. e6 $2 {[%emt 0:00:00]} (43. Kg4) 43... fxe6 {[%emt 0:01:41]} 44. f6 {[%emt 0:00:00]} b4 {[%emt 0:06:18]} (44... Bd7 $142 45. Ke5 Kf7) 45. Be5 $2 {[%emt 0:00:00]} (45. Ke5 {was the only defense.}) 45... Ba6 {[%emt 0:00:29]} 46. Bd4 {[%emt 0:00:00]} Be2 {[%emt 0:00:13]} 47. Ke5 {[%emt 0:00:00]} Kf7 {[%emt 0:00:25]} 48. Bb2 {[%emt 0:00:00]} Bc4 {[%emt 0:00:27]} 49. Bd4 {[%emt 0:00:00]} Bd3 {[%emt 0:02:33]} 50. Bb2 {[%emt 0:00:00]} Bf5 {[%emt 0:02:39]} 51. Bd4 {[%emt 0:00:00]} b3 {[%emt 0:00:34]} (51... Bh7 $142 {And now ...Bg8 would win.} 52. Kd6 Bg8) 52. Bb2 {[%emt 0:00:00]} Bh7 {[%emt 0:00:12] White must now prevent ...Bg8.} 53. Bd4 $2 {[%emt 0:00:00] [#]} (53. Ba1 {was worth a try.}) 53... Bg8 $1 {[%emt 0:00:14]} 54. Bb2 {[%emt 0:00:00]} Kg6 {[%emt 0:01:35] Threatens to win with ...Kh5.} 55. Kf4 {[%emt 0:00:00]} Bf7 {[%emt 0:00:38]} 56. Be5 {[%emt 0:00:00]} Kh5 {[%emt 0:00:18]} 57. Kg3 {[%emt 0:00:00]} Bg6 {[%emt 0:00:29]} 58. Bb2 {[%emt 0:00:00]} Be8 {[%emt 0:00:46]} 59. Bc3 {[%emt 0:00:00]} Bf7 {[%emt 0:02:52]} (59... e5 $142 60. Bxe5 Kg6) 60. Be5 $1 {[%emt 0:00:00]} Kg6 $2 {[%emt 0:01:03]} (60... Bg8 61. Bd4 Kg6) 61. Kf4 {[%emt 0:00:00]} Kh7 {[%emt 0:00:49]} 62. Bb2 {[%emt 0:00:00] [#]} Kg8 $1 {[%emt 0:00:10]} 63. Ke5 {[%emt 0:00:00]} Kf8 {[%emt 0:00:07]} 64. Kd6 {[%emt 0:00:00]} Ke8 {[%emt 0:00:13]} 65. Bd4 {[%emt 0:00:00]} Bg8 {[%emt 0:02:12][%cal Oe6e5]} 66. Bb2 {[%emt 0:00:00] Weighted Error Value: White=0.32/Black=0.34} 1/2-1/2

[Event "Finnish Senior Championship 2022"]
[Site "Helsinki"]
[Date "2022.04.18"]
[Round "4.3"]
[White "Lyly, Seppo"]
[Black "Koskinen, Hannu E."]
[Result "1-0"]
[ECO "B09"]
[WhiteElo "1908"]
[BlackElo "1746"]
[Annotator "TA"]
[PlyCount "41"]
[EventDate "2022.04.15"]
[EventType "swiss"]
[EventCountry "FIN"]
[SourceTitle "playchess.com"]
[Source "ChessBase"]
[SourceQuality "1"]
[TimeControl "40/5400+30:1800+30"]

{[%evp 22,41,25,25,39,23,24,0,0,0,56,54,45,51,61,39,145,148,29991,29992,29993,29994]} 1. e4 {[%emt 0:00:02]} d6 {[%emt 0:00:06]} 2. d4 {[%emt 0:00:14]} Nf6 {[%emt 0:00:06]} 3. Nc3 {[%emt 0:00:06]} g6 {[%emt 0:00:03]} 4. f4 {[%emt 0:00:09]} Bg7 {[%emt 0:00:05]} 5. Nf3 {[%emt 0:00:09]} O-O {[%emt 0:00:11]} 6. Be2 {[%emt 0:01:07]} c5 {[%emt 0:00:20]} 7. dxc5 {[%emt 0:00:28]} Qa5 {[%emt 0:00:05]} 8. O-O {[%emt 0:00:23]} Qxc5+ {[%emt 0:00:05]} 9. Kh1 {[%emt 0:00:09]} Nc6 {[%emt 0:01:14]} 10. Bd3 {[%emt 0:00:57]} Bg4 {[%emt 0:04:54]} 11. Qe1 {[%emt 0:01:03]} Nb4 {[%emt 0:03:18]} 12. Be3 {[%emt 0:04:45]} Nxd3 {[%emt 0:09:51] B09: Pirc Defence: Austrian Attack.} 13. cxd3 {[%emt 0:00:20]} Qa5 {[%emt 0:02:28]} 14. Rc1 {[%emt 0:15:07] [#]} Bxf3 $146 {[%emt 0:05:48] The position is equal.} ({Predecessor:} 14... Rfc8 15. h3 Bxf3 16. Rxf3 Rc6 17. f5 Nd7 18. d4 Nb6 19. Qh4 Bf6 20. Bg5 Bxd4 21. Bxe7 Nd7 22. Rcf1 Ne5 23. Qh6 f6 24. Bxf6 Rc7 25. Bxe5 Qxe5 26. fxg6 {1-0 (26) Neurohr,S (2320)-Spacek,P (2390) Germany 1993}) 15. Rxf3 {[%emt 0:01:26]} Nd7 {[%emt 0:06:11]} (15... b5 $11) 16. Rh3 $14 {[%emt 0:04:41]} Nf6 {[%emt 0:09:54]} 17. Qh4 {[%emt 0:01:43][%cal Oc3d5] Hoping for Nd5!} h5 {[%emt 0:07:32]} 18. f5 {[%emt 0:10:04]} Ng4 {[%emt 0:06:45] [#]} ({Black should play} 18... e6 $14) 19. Nd5 $1 $16 {[%emt 0:07:01]} ({Reject} 19. Qxe7 $6 Nxe3 20. Rxe3 Bh6 $11) 19... e6 {[%emt 0:05:54][%mdl 8192]} (19... Bf6 $16 20. Nxf6+ (20. Nxe7+ Kg7 $11) 20... exf6) 20. Ne7+ {[%emt 0:01:48]} Kh7 {[%emt 0:00:18]} 21. Qxg4 {[%emt 0:00:12] Weighted Error Value: White=0.02 (flawless) /Black=0.71} 1-0

[Event "Finnish Senior Championship 2022"]
[Site "Helsinki"]
[Date "2022.04.18"]
[Round "4.4"]
[White "Lehtela, Antti"]
[Black "Smeds, Tom"]
[Result "1/2-1/2"]
[ECO "A56"]
[WhiteElo "1632"]
[BlackElo "1863"]
[Annotator "NA RC"]
[PlyCount "82"]
[EventDate "2022.04.15"]
[EventType "swiss"]
[EventCountry "FIN"]
[SourceTitle "playchess.com"]
[Source "ChessBase"]
[SourceQuality "1"]
[TimeControl "40/5400+30:1800+30"]

1. d4 {[%emt 0:00:03]} Nf6 {[%emt 0:00:13]} 2. c4 {[%emt 0:00:09]} c5 {[%emt 0:00:09]} 3. d5 {[%emt 0:00:13]} e5 {[%emt 0:00:09]} 4. Nc3 {[%emt 0:00:39]} d6 {[%emt 0:00:10]} 5. e4 {[%emt 0:00:33]} Be7 {[%emt 0:00:11]} 6. Nf3 {[%emt 0:02:03]} Nbd7 {[%emt 0:00:21]} 7. Be2 {[%emt 0:02:05]} Nf8 {[%emt 0:00:15]} 8. Be3 {[%emt 0:04:38]} Ng6 {[%emt 0:00:12]} 9. Qd2 {[%emt 0:02:13]} Ng4 {[%emt 0:04:25]} 10. g3 {[%emt 0:08:42]} Nxe3 {[%emt 0:00:33]} 11. Qxe3 {[%emt 0:00:06]} O-O {[%emt 0:00:24]} 12. h4 {[%emt 0:02:35]} f5 {[%emt 0:01:42]} 13. exf5 {[%emt 0:02:54]} Bxf5 {[%emt 0:00:33]} 14. Ne4 {[%emt 0:02:13]} h6 {[%emt 0:02:03]} 15. Nfd2 {[%emt 0:03:28]} Nh8 {[%emt 0:06:50]} 16. O-O-O {[%emt 0:16:15]} Qa5 {[%emt 0:02:59]} 17. Kb1 {[%emt 0:02:08]} a6 {[%emt 0:00:23]} 18. Ka1 {[%emt 0:00:35]} b5 {[%emt 0:00:37]} 19. g4 {[%emt 0:09:36]} Bxe4 {[%emt 0:01:56]} 20. Nxe4 {[%emt 0:01:08]} Ng6 {[%emt 0:01:43]} 21. g5 {[%emt 0:04:56]} hxg5 $2 {[%emt 0:00:55]} (21... h5) 22. hxg5 {[%emt 0:00:40]} Nf4 {[%emt 0:00:48]} 23. Bg4 {[%emt 0:02:10]} Kf7 {[%emt 0:17:40]} 24. g6+ {[%emt 0:12:45]} Ke8 {[%emt 0:07:09] [#]} 25. Nxc5 $1 {[%emt 0:07:02]} Bg5 {[%emt 0:06:00]} 26. Qe4 {[%emt 0:02:42]} bxc4 {[%emt 0:04:54]} 27. Nd7 {[%emt 0:04:48]} Nd3 {[%emt 0:03:37]} 28. Rxd3 {[%emt 0:03:20]} cxd3 {[%emt 0:02:35]} 29. Nxf8 {[%emt 0:00:37]} Bf6 {[%emt 0:05:52]} 30. Qxd3 {[%emt 0:01:00]} Rb8 {[%emt 0:02:46]} 31. Qe4 {[%emt 0:00:15]} Qb6 {[%emt 0:01:39]} 32. b3 {[%emt 0:00:43]} Kxf8 {[%emt 0:00:35]} 33. Rh8+ {[%emt 0:02:21]} Ke7 {[%emt 0:00:08]} 34. Rxb8 {[%emt 0:00:52]} Qxb8 {[%emt 0:00:26]} 35. Qf5 {[%emt 0:00:19]} Qc7 {[%emt 0:01:59]} 36. Qe6+ {[%emt 0:00:42]} Kf8 {[%emt 0:00:11]} 37. Qc8+ {[%emt 0:00:38]} Qxc8 {[%emt 0:01:00]} 38. Bxc8 {[%emt 0:00:05]} a5 {[%emt 0:00:54]} 39. Kb1 {[%emt 0:00:11]} e4 {[%emt 0:07:02]} 40. Bf5 {[%emt 0:00:27]} Bd4 {[%emt 0:00:06]} 41. Bxe4 {[%emt 0:31:37]} Bxf2 {[%emt 0:30:22]} 1/2-1/2

[Event "Finnish Senior Championship 2022"]
[Site "Helsinki"]
[Date "2022.04.18"]
[Round "4.5"]
[White "Raitanen, Markku"]
[Black "Kivipelto, Kaj"]
[Result "0-1"]
[ECO "B07"]
[WhiteElo "1813"]
[BlackElo "2129"]
[Annotator "TA"]
[PlyCount "100"]
[EventDate "2022.04.15"]
[EventType "swiss"]
[EventCountry "FIN"]
[SourceTitle "playchess.com"]
[Source "ChessBase"]
[SourceQuality "1"]
[TimeControl "40/5400+30:1800+30"]

{[%evp 9,100,7,29,28,39,19,9,14,31,-28,-33,-17,-30,-50,0,1,2,0,0,0,0,0,-12,-12,0,-12,-10,-11,-21,-69,-44,-88,-87,-311,-194,-196,-182,-177,-200,-184,-203,-200,-179,-172,-12,-8,0,0,0,-30,-20,-28,-22,-64,-57,-57,-50,-339,-156,-160,-113,-142,-166,-177,-150,-156,-55,-74,-65,-62,-61,-47,-47,-143,-138,-150,-136,-200,-193,-448,-52,-61,-18,-18,-18,-18,-18,-29976,-29976,-29978,-29979,-29974,-6054]} 1. e4 {[%emt 0:00:45]} c5 {[%emt 0:00:33]} 2. c3 {[%emt 0:00:10]} d6 {[%emt 0:00:34][%cal Bd7d6,Bd6d5][%mdl 32]} 3. d4 {[%emt 0:00:36]} Nf6 {[%emt 0:03:22]} 4. f3 {[%emt 0:00:43]} Nc6 {[%emt 0:02:07]} 5. Be3 {[%emt 0:02:56]} cxd4 {[%emt 0:11:35]} 6. cxd4 {[%emt 0:00:42] B07: Pirc Defence: Miscellaneous Systems.} d5 {[%emt 0:05:15]} 7. e5 {[%emt 0:07:51]} Nd7 {[%emt 0:00:26]} 8. Nc3 {[%emt 0:00:55] The position is equal.} e6 {[%emt 0:02:43][%cal Od7e5] [#]} (8... Ndxe5 $5 9. dxe5 d4 $14) 9. Rc1 $146 {[%emt 0:01:07] [#]} ({Better is} 9. f4 $14) ({Predecessor:} 9. f4 Be7 10. Nf3 a6 11. Rc1 O-O 12. Bd3 Nb6 13. b3 Ba3 14. Bxh7+ Kxh7 15. Ng5+ {1-0 (66) Swijsen,L (1960)-Real,T (1974) Houffalize 2011}) 9... Ndxe5 $1 $11 {[%emt 0:10:39]} 10. dxe5 {[%emt 0:02:11]} d4 {[%emt 0:02:50]} 11. Bxd4 {[%emt 0:11:02]} Qxd4 {[%emt 0:03:46]} (11... Nxd4 $15 12. Qd2 Qb6) 12. Qxd4 {[%emt 0:04:36]} Nxd4 {[%emt 0:00:02]} 13. Bb5+ {[%emt 0:03:11]} Nxb5 {[%emt 0:00:56]} 14. Nxb5 {[%emt 0:02:37] And now Nc7+ would win.} Bb4+ {[%emt 0:01:35]} 15. Kf2 {[%emt 0:01:47]} O-O {[%emt 0:00:59]} 16. Ne2 {[%emt 0:03:17]} Bd7 {[%emt 0:05:18]} 17. Ned4 {[%emt 0:03:17]} Ba5 {[%emt 0:07:49]} 18. Rhd1 {[%emt 0:03:34]} Bb6 {[%emt 0:00:21]} 19. Ke2 {[%emt 0:01:02]} (19. Nd6 $11 {was preferrable.}) 19... f6 $15 {[%emt 0:04:28]} 20. Nc7 {[%emt 0:08:13]} Rac8 $36 {[%emt 0:06:52][%mdl 2048] Black is on the roll.} 21. Ncxe6 {[%emt 0:04:18]} (21. Ndxe6 $17 Rf7 22. b3 (22. exf6 $2 gxf6 23. Nd5 Re8 $19)) 21... Rxc1 {[%emt 0:02:18]} 22. Rxc1 {[%emt 0:00:14]} Re8 {[%emt 0:07:15]} 23. Nc7 {[%emt 0:00:33]} Rc8 {[%emt 0:04:38]} ({Worse is} 23... Bxd4 24. Nxe8 Bxe8 25. Rc8 $17) 24. e6 {[%emt 0:03:39]} Be8 {[%emt 0:01:33]} 25. Nxe8 {[%emt 0:04:23][%cal Bc7e8,Be8g7,Bg7h5,Bh5f4,Bf4d5][%mdl 32]} Rxc1 $19 {[%emt 0:00:11][%mdl 4096] Endgame KRB-KNN} 26. Nf5 {[%emt 0:00:49] Black must now prevent e7.} Bc5 {[%emt 0:03:17]} (26... Bd8 $1 $19 {...Rc2+ is the strong threat.} 27. Kd3 (27. e7 Bxe7 28. Nxe7+ Kf7 $19) 27... g6) 27. Nexg7 $11 {[%emt 0:07:42]} Kf8 {[%emt 0:01:49]} 28. Nh5 {[%emt 0:02:58]} Be7 {[%emt 0:00:25]} 29. Nf4 {[%emt 0:01:44]} Rc2+ {[%emt 0:06:20]} 30. Kd3 {[%emt 0:01:15]} Rxb2 {[%emt 0:00:01]} 31. Nd5 {[%emt 0:03:38]} Bd8 {[%emt 0:00:15]} 32. g4 {[%emt 0:04:27]} Rxh2 {[%emt 0:01:50]} 33. Kc4 $2 {[%emt 0:01:49][%mdl 8192]} ({White should try} 33. a4 $15) 33... Rc2+ {[%emt 0:00:43]} ({And not} 33... Rxa2 34. e7+ Bxe7 35. Nfxe7 $17) (33... Re2 $1 $19 {is more deadly.} 34. e7+ Bxe7) 34. Kd3 $17 {[%emt 0:00:23]} Rxa2 {[%emt 0:00:18]} (34... Rf2 $142 35. f4 Rxa2 36. e7+ Bxe7 $1 37. Nfxe7 Ra3+ 38. Kd4 Rg3) 35. e7+ {[%emt 0:01:18] [#]} Bxe7 $1 {[%emt 0:00:08]} 36. Ndxe7 {[%emt 0:01:21]} (36. Nfxe7 a5) 36... Ra3+ {[%emt 0:01:49]} 37. Ke4 {[%emt 0:00:55] [#]} Kf7 {[%emt 0:00:02]} (37... a5 $1 $17 {Strongly threatening ...Ra2.} 38. Nd5 Kf7) 38. Nd5 {[%emt 0:00:48]} Ra4+ {[%emt 0:00:35]} 39. Kd3 {[%emt 0:01:41]} Ke6 {[%emt 0:00:44]} 40. Nc3 {[%emt 0:02:08]} Rb4 {[%emt 0:01:23]} 41. Ne4 {[%emt 0:32:29]} (41. Nd4+ $15 Kf7 42. Nd5) 41... Ke5 {[%emt 0:31:31][%cal Oh7h5]} 42. Kc3 {[%emt 0:00:00]} Rb6 {[%emt 0:00:00][%cal Oh7h5]} 43. Kc4 {[%emt 0:00:00]} (43. Nd4 $17 {was necessary.}) 43... h5 $19 {[%emt 0:00:00] Hoping for ...hxg4.} 44. Ne3 {[%emt 0:00:00]} (44. Nc3 {was called for.}) 44... hxg4 $2 {[%emt 0:00:00]} (44... h4 $19 45. g5 fxg5) 45. Nxg4+ $15 {[%emt 0:00:00]} Kf4 {[%emt 0:00:00] aiming for ...f5.} 46. Ngxf6 {[%emt 0:00:00]} Kxf3 {[%emt 0:00:00]} 47. Kc5 {[%emt 0:00:00]} Rc6+ {[%emt 0:00:00]} 48. Kb5 $2 {[%emt 0:00:00][%mdl 8192]} (48. Kd5 $11) 48... Ke3 {[%emt 0:00:00] Black mates.} 49. Kb4 {[%emt 0:00:00]} Kd4 {[%emt 0:00:00]} 50. Kb3 {[%emt 0:00:00]} Re6 {[%emt 0:00:00] Weighted Error Value: White=0.53/Black=0.34} 0-1

[Event "Finnish Senior Championship 2022"]
[Site "Helsinki"]
[Date "2022.04.19"]
[Round "5.1"]
[White "Kivipelto, Kaj"]
[Black "Binham, Timothy F."]
[Result "0-1"]
[ECO "A07"]
[WhiteElo "2129"]
[BlackElo "2275"]
[Annotator "TA"]
[PlyCount "46"]
[EventDate "2022.04.15"]
[EventType "swiss"]
[EventCountry "FIN"]
[SourceTitle "playchess.com"]
[Source "ChessBase"]
[SourceQuality "1"]
[TimeControl "40/5400+30:1800+30"]

{[%evp 9,46,13,20,3,0,-2,0,-17,20,-33,-31,-33,-34,-53,-63,-41,-24,-60,-61,-152,-138,-105,-58,-159,-147,-199,-182,-198,-196,-199,-186,-272,-239,-342,-293,-365,-308,-427,-388]} 1. Nf3 {[%emt 0:00:04]} d5 {[%emt 0:00:07]} 2. g3 {[%emt 0:00:09]} Nf6 {[%emt 0:00:09]} 3. Bg2 {[%emt 0:00:17]} Bf5 {[%emt 0:00:06]} 4. O-O {[%emt 0:00:39]} e6 {[%emt 0:00:17]} 5. d3 {[%emt 0:00:14]} Be7 {[%emt 0:01:33]} 6. Nc3 {[%emt 0:01:17][%cal Oe2e4] A07: Réti Opening: New York and Capablanca Systems.} h6 {[%emt 0:03:08]} 7. e3 {[%emt 0:01:53]} O-O {[%emt 0:00:35]} 8. Qe2 {[%emt 0:00:12] [#] The position is equal.} c5 $146 {[%emt 0:03:03]} ({Predecessor:} 8... Bh7 9. e4 Bb4 10. e5 Nfd7 11. h4 Be7 12. Nd1 c5 13. Ne3 Nc6 14. Ng4 Kh8 {1-0 (31) Biebinger,G-Mandl,R Kirchheim 1982}) 9. Nh4 {[%emt 0:17:17]} (9. Ne5 $11) 9... Bh7 $15 {[%emt 0:00:56]} 10. f4 {[%emt 0:00:14]} Nc6 {[%emt 0:01:11]} 11. Nd1 {[%emt 0:02:26]} Rc8 {[%emt 0:07:29]} 12. Nf2 {[%emt 0:05:46]} c4 {[%emt 0:12:28]} 13. Bd2 {[%emt 0:23:34]} Qb6 {[%emt 0:13:12]} 14. dxc4 {[%emt 0:17:58]} (14. Rfb1 $15) 14... Qxb2 $17 {[%emt 0:11:11]} ({Inferior is} 14... Bxc2 15. Bc3 Bh7 16. cxd5 Nxd5 17. Bxd5 exd5 18. Rad1 $15) 15. cxd5 {[%emt 0:04:47]} exd5 {[%emt 0:02:16]} (15... Nxd5 $17 {And now ...Ncb4 would win.} 16. Rfb1 Qxc2 17. Rxb7 Rb8 18. Rxb8 Rxb8) 16. c3 {[%emt 0:03:38] Inhibits Nb4.} (16. a4 $15) 16... Rfe8 {[%emt 0:03:27] &Nero is more active.} 17. Nd3 {[%emt 0:02:09] Prevents Bc5.} (17. Bh3 $17) 17... Qc2 {[%emt 0:04:44]} 18. f5 {[%emt 0:00:34]} Ne4 {[%emt 0:01:34]} 19. Bxe4 {[%emt 0:00:42]} dxe4 {[%emt 0:00:05]} 20. Ne1 {[%emt 0:00:46]} (20. Nb4 $142 Nxb4 21. cxb4) 20... Qb2 $19 {[%emt 0:00:47]} 21. Neg2 {[%emt 0:00:36]} (21. Rc1 {keeps fighting.}) 21... Red8 {[%emt 0:03:07]} 22. Rad1 {[%emt 0:01:14]} Bf6 {[%emt 0:03:04]} 23. Qe1 {[%emt 0:04:28]} Qxa2 {[%emt 0:03:54] Weighted Error Value: White=0.43/Black=0.12 (very precise)} 0-1

[Event "Finnish Senior Championship 2022"]
[Site "Helsinki"]
[Date "2022.04.19"]
[Round "5.2"]
[White "Aakio, Seppo"]
[Black "Lyly, Seppo"]
[Result "1-0"]
[ECO "C44"]
[WhiteElo "2051"]
[BlackElo "1908"]
[Annotator "TA"]
[PlyCount "53"]
[EventDate "2022.04.15"]
[EventType "swiss"]
[EventCountry "FIN"]
[SourceTitle "playchess.com"]
[Source "ChessBase"]
[SourceQuality "1"]
[TimeControl "40/5400+30:1800+30"]

{[%evp 12,53,176,160,167,176,141,150,144,156,232,232,223,189,184,186,590,601,577,424,431,422,421,392,551,461,456,460,529,425,494,471,654,644,722,732,710,697,829,816,819,804,802,785]} 1. e4 {[%emt 0:00:57]} e5 {[%emt 0:00:06]} 2. Nf3 {[%emt 0:00:25]} Nc6 {[%emt 0:00:06]} 3. d4 {[%emt 0:00:21]} exd4 {[%emt 0:00:10]} 4. c3 {[%emt 0:00:04][%cal Bc2c3,Bc3d4,Bd4d5][%mdl 32]} Nf6 {[%emt 0:02:20]} 5. e5 {[%emt 0:11:56]} Ne4 {[%emt 0:00:13]} 6. Qe2 {[%emt 0:05:50]} Nc5 {[%emt 0:15:18][%cal Be4c5,Bc5e6,Be6d4][%mdl 32]} 7. cxd4 {[%emt 0:00:08]} Ne6 {[%emt 0:00:08] [#] C44: Ponziani Opening and Scotch Gambit.} 8. d5 {[%emt 0:15:21][%csl LRc6,LRe6]} Ncd4 {[%emt 0:03:31]} 9. Nxd4 {[%emt 0:00:02]} Nxd4 {[%emt 0:00:09] White is clearly better.} 10. Qe4 {[%emt 0:00:05]} c5 {[%emt 0:05:25]} (10... Bb4+ $16 11. Nc3 c5) 11. Nc3 $18 {[%emt 0:01:49]} Rb8 {[%emt 0:09:15] [#]} 12. Be3 $146 {[%emt 0:04:53]} ({Predecessor:} 12. Bf4 Qe7 13. Bd3 b5 14. O-O b4 15. d6 Qd8 16. Nd5 Ne6 17. Nc7+ Nxc7 18. dxc7 Qxc7 {1-0 (37) Uwira,O (2115)-Spillecke,T Neumuenster 1999}) 12... Qb6 {[%emt 0:04:14]} 13. O-O-O {[%emt 0:00:44] Hoping for d6.} g6 $2 {[%emt 0:01:47]} (13... Qg6 {is tougher.} 14. Bxd4 Qxe4 15. Nxe4 cxd4 16. Rxd4 b6) 14. e6 {[%emt 0:05:40] Qe5 is the strong threat.} ({Not} 14. Bxd4 cxd4 15. Rxd4 Bg7 $18) 14... Bg7 {[%emt 0:02:57][%cal Rd7e6] Against Qe5} 15. Qf4 {[%emt 0:05:30]} dxe6 {[%emt 0:08:56] Threatens to win with ...e5.} 16. Qxb8 {[%emt 0:01:20]} O-O {[%emt 0:00:09]} 17. d6 {[%emt 0:03:11]} Qb4 {[%emt 0:06:30]} (17... Bd7 {was worth a try.} 18. Qc7 Qxc7 19. dxc7 Rc8) 18. Bd2 {[%emt 0:04:27] White is clearly winning.} Bd7 {[%emt 0:01:35]} 19. Qxa7 {[%emt 0:08:22]} Bb5 {[%emt 0:07:13]} 20. Qa3 {[%emt 0:01:12]} Bxf1 {[%emt 0:00:46]} 21. Rhxf1 {[%emt 0:00:40] aiming for Qxb4.} ({Weaker is} 21. Rdxf1 Qc4 22. Re1 Qd3 $18) 21... Qc4 {[%emt 0:00:34]} 22. Be3 {[%emt 0:10:50]} b5 {[%emt 0:00:56]} 23. Kb1 {[%emt 0:00:27]} b4 {[%emt 0:00:32]} 24. Qa4 {[%emt 0:00:12]} Rd8 {[%emt 0:12:55]} 25. Bxd4 {[%emt 0:00:30]} cxd4 {[%emt 0:00:24] [#]} 26. Qb5 $1 {[%emt 0:00:10]} Qc8 {[%emt 0:01:30]} (26... Qxb5 27. Nxb5) 27. Ne4 {[%emt 0:00:12] Weighted Error Value: White=0.23 (precise) /Black=0.71} 1-0